[Event "Titled Tuesday Blitz July 25 Early 2023"]
[White "Leon Oquendo, Jorge"]
[Black "Harriott, Tyrell"]
[WhiteFideId "3514803"]
[BlackFideId "2086484"]
[WhiteElo "2703"]
[BlackElo "2362"]
[Result "1-0"]
[Round "1"]
[TimeControl "180+2"]
[Date "2023.07.25"]
[WhiteClock "0:00:23"]
[BlackClock "0:00:56"]
[Board "132"]

1. d4 {[%clk 0:02:52]}  e6 {[%clk 0:02:57]} 2. c4 {[%clk 0:02:52]}  d5 {[%clk 0:02:57]} 3. Nc3 {[%clk 0:02:51]}  f5 {[%clk 0:02:57]} 4. Bf4 {[%clk 0:02:50]}  Bd6 {[%clk 0:02:55]} 5. Bxd6 {[%clk 0:02:47]}  Qxd6 {[%clk 0:02:56]} 6. e3 {[%clk 0:02:47]}  Nf6 {[%clk 0:02:55]} 7. Nf3 {[%clk 0:02:39]}  Nbd7 {[%clk 0:02:55]} 8. Bd3 {[%clk 0:02:38]}  Ne4 {[%clk 0:02:53]} 9. Rc1 {[%clk 0:02:35]}  c6 {[%clk 0:02:53]} 10. Qc2 {[%clk 0:02:28]}  O-O {[%clk 0:02:51]} 11. a3 {[%clk 0:02:21]}  a5 {[%clk 0:02:47]} 12. h3 {[%clk 0:02:19]}  Kh8 {[%clk 0:02:43]} 13. Qe2 {[%clk 0:02:13]}  Kg8 {[%clk 0:02:41]} 14. g4 {[%clk 0:02:12]}  Nxc3 {[%clk 0:02:39]} 15. Rxc3 {[%clk 0:02:11]}  Nf6 {[%clk 0:02:37]} 16. Ne5 {[%clk 0:02:01]}  Nd7 {[%clk 0:02:37]} 17. f4 {[%clk 0:01:57]}  Nxe5 {[%clk 0:02:36]} 18. dxe5 {[%clk 0:01:56]}  Qd8 {[%clk 0:02:32]} 19. cxd5 {[%clk 0:01:42]}  Qxd5 {[%clk 0:02:24]} 20. Rf1 {[%clk 0:01:25]}  b5 {[%clk 0:02:15]} 21. e4 {[%clk 0:01:22]}  Qd8 {[%clk 0:02:09]} 22. exf5 {[%clk 0:01:21]}  exf5 {[%clk 0:02:09]} 23. Rxc6 {[%clk 0:01:12]}  Rb8 {[%clk 0:01:59]} 24. Rf2 {[%clk 0:00:56]}  Qh4 {[%clk 0:01:54]} 25. gxf5 {[%clk 0:00:54]}  Bxf5 {[%clk 0:01:46]} 26. Bxf5 {[%clk 0:00:46]}  Rxf5 {[%clk 0:01:47]} 27. Qg4 {[%clk 0:00:46]}  Qxg4 {[%clk 0:01:35]} 28. hxg4 {[%clk 0:00:47]}  Rf7 {[%clk 0:01:33]} 29. e6 {[%clk 0:00:46]}  Re7 {[%clk 0:01:33]} 30. f5 {[%clk 0:00:46]}  h6 {[%clk 0:01:32]} 31. Rd2 {[%clk 0:00:45]}  Kf8 {[%clk 0:01:31]} 32. Ke2 {[%clk 0:00:44]}  b4 {[%clk 0:01:31]} 33. a4 {[%clk 0:00:44]}  Ke8 {[%clk 0:01:29]} 34. Ke3 {[%clk 0:00:44]}  Reb7 {[%clk 0:01:25]} 35. b3 {[%clk 0:00:43]}  Ke7 {[%clk 0:01:24]} 36. Ke4 {[%clk 0:00:43]}  Kf6 {[%clk 0:01:23]} 37. Rd5 {[%clk 0:00:40]}  Ra7 {[%clk 0:01:21]} 38. Rcc5 {[%clk 0:00:40]}  Rba8 {[%clk 0:01:20]} 39. Kf4 {[%clk 0:00:39]}  Ke7 {[%clk 0:01:18]} 40. Ke5 {[%clk 0:00:37]}  Ke8 {[%clk 0:01:11]} 41. Rd6 {[%clk 0:00:37]}  Ke7 {[%clk 0:01:11]} 42. Rcd5 {[%clk 0:00:38]}  Ke8 {[%clk 0:01:09]} 43. Rd7 {[%clk 0:00:38]}  Kf8 {[%clk 0:01:06]} 44. Rxa7 {[%clk 0:00:31]}  Rxa7 {[%clk 0:01:06]} 45. f6 {[%clk 0:00:27]}  gxf6+ {[%clk 0:01:05]} 46. Kxf6 {[%clk 0:00:28]}  Ra8 {[%clk 0:01:00]} 47. Rd7 {[%clk 0:00:27]}  Kg8 {[%clk 0:01:00]} 48. Rg7+ {[%clk 0:00:26]}  Kh8 {[%clk 0:00:59]} 49. e7 {[%clk 0:00:24]}  Ra6+ {[%clk 0:00:56]} 50. Kf7 {[%clk 0:00:25]}  Ra7 {[%clk 0:00:54]} 51. Rg8+ {[%clk 0:00:19]}  Kh7 {[%clk 0:00:54]} 52. Rb8 {[%clk 0:00:19]}  h5 {[%clk 0:00:52]} 53. g5 {[%clk 0:00:18]}  h4 {[%clk 0:00:51]} 54. g6+ {[%clk 0:00:19]}  Kh6 {[%clk 0:00:51]} 55. g7 {[%clk 0:00:18]}  Rxe7+ {[%clk 0:00:48]} 56. Kxe7 {[%clk 0:00:19]}  Kxg7 {[%clk 0:00:49]} 57. Rb5 {[%clk 0:00:19]}  Kg6 {[%clk 0:00:49]} 58. Re5 {[%clk 0:00:17]}  h3 {[%clk 0:00:50]} 59. Re3 {[%clk 0:00:17]}  Kg5 {[%clk 0:00:51]} 60. Rxh3 {[%clk 0:00:17]}  Kf4 {[%clk 0:00:52]} 61. Rh5 {[%clk 0:00:17]}  Ke4 {[%clk 0:00:51]} 62. Rxa5 {[%clk 0:00:17]}  Kd3 {[%clk 0:00:52]} 63. Rc5 {[%clk 0:00:18]}  Kd2 {[%clk 0:00:52]} 64. Rc8 {[%clk 0:00:18]}  Kd3 {[%clk 0:00:53]} 65. Kd6 {[%clk 0:00:19]}  Kd2 {[%clk 0:00:54]} 66. Kc5 {[%clk 0:00:19]}  Kd3 {[%clk 0:00:55]} 67. Kxb4 {[%clk 0:00:19]}  Kd2 {[%clk 0:00:56]} 68. a5 {[%clk 0:00:19]}  Kd3 {[%clk 0:00:57]} 69. a6 {[%clk 0:00:20]}  Kd2 {[%clk 0:00:58]} 70. a7 {[%clk 0:00:21]}  Kd3 {[%clk 0:00:57]} 71. a8=Q {[%clk 0:00:21]}  Kd2 {[%clk 0:00:58]} 72. Qd5+ {[%clk 0:00:21]}  Ke3 {[%clk 0:00:57]} 73. Re8+ {[%clk 0:00:22]}  Kf4 {[%clk 0:00:57]} 74. Qf7+ {[%clk 0:00:22]}  Kg5 {[%clk 0:00:56]} 75. Rg8+ {[%clk 0:00:23]} 1-0


[Site "https://www.chess.com"]

[Event "Titled Tuesday Blitz July 25 Early 2023"]
[White "Vifleemskaia, Svetlana"]
[Black "Marek, Matyas"]
[WhiteFideId "4129490"]
[BlackFideId "335398"]
[WhiteElo "2362"]
[BlackElo "2702"]
[Result "0-1"]
[Round "1"]
[TimeControl "180+2"]
[Date "2023.07.25"]
[WhiteClock "0:00:01"]
[BlackClock "0:00:15"]
[Board "133"]

1. d4 {[%clk 0:02:54]}  Nf6 {[%clk 0:02:59]} 2. c4 {[%clk 0:02:54]}  c5 {[%clk 0:03:00]} 3. d5 {[%clk 0:02:53]}  b5 {[%clk 0:03:00]} 4. Nd2 {[%clk 0:02:54]}  bxc4 {[%clk 0:02:57]} 5. e4 {[%clk 0:02:53]}  d6 {[%clk 0:02:57]} 6. Bxc4 {[%clk 0:02:50]}  g6 {[%clk 0:02:57]} 7. b3 {[%clk 0:02:50]}  Bg7 {[%clk 0:02:58]} 8. Bb2 {[%clk 0:02:51]}  Nbd7 {[%clk 0:02:58]} 9. Qc2 {[%clk 0:02:51]}  O-O {[%clk 0:02:58]} 10. Ngf3 {[%clk 0:02:48]}  Nb6 {[%clk 0:02:58]} 11. O-O {[%clk 0:02:47]}  Nxc4 {[%clk 0:02:58]} 12. bxc4 {[%clk 0:02:43]}  Rb8 {[%clk 0:02:58]} 13. Bc3 {[%clk 0:02:44]}  Qc7 {[%clk 0:02:52]} 14. h3 {[%clk 0:02:43]}  Ba6 {[%clk 0:02:46]} 15. Rab1 {[%clk 0:02:41]}  Rxb1 {[%clk 0:02:44]} 16. Rxb1 {[%clk 0:02:40]}  Rb8 {[%clk 0:02:45]} 17. Rb3 {[%clk 0:02:27]}  Nd7 {[%clk 0:02:38]} 18. Bxg7 {[%clk 0:02:11]}  Kxg7 {[%clk 0:02:39]} 19. Qb2+ {[%clk 0:02:10]}  Kg8 {[%clk 0:02:37]} 20. Rxb8+ {[%clk 0:02:02]}  Qxb8 {[%clk 0:02:36]} 21. Qxb8+ {[%clk 0:01:47]}  Nxb8 {[%clk 0:02:37]} 22. Ne1 {[%clk 0:01:42]}  Nd7 {[%clk 0:02:34]} 23. Nc2 {[%clk 0:01:41]}  Ne5 {[%clk 0:02:34]} 24. Ne3 {[%clk 0:00:52]}  e6 {[%clk 0:02:24]} 25. f4 {[%clk 0:00:34]}  Nd3 {[%clk 0:02:24]} 26. g3 {[%clk 0:00:34]}  Kf8 {[%clk 0:02:06]} 27. Kf1 {[%clk 0:00:32]}  Ke7 {[%clk 0:02:05]} 28. a3 {[%clk 0:00:27]}  h6 {[%clk 0:01:33]} 29. Nb3 {[%clk 0:00:26]}  Kd7 {[%clk 0:01:11]} 30. Ke2 {[%clk 0:00:17]}  Nb2 {[%clk 0:01:07]} 31. Na5 {[%clk 0:00:09]}  Kc7 {[%clk 0:01:03]} 32. Kd2 {[%clk 0:00:09]}  Kb6 {[%clk 0:00:46]} 33. Kc2 {[%clk 0:00:08]}  Kxa5 {[%clk 0:00:43]} 34. Kxb2 {[%clk 0:00:08]}  Kb6 {[%clk 0:00:44]} 35. Kc3 {[%clk 0:00:07]}  Kc7 {[%clk 0:00:43]} 36. e5 {[%clk 0:00:05]}  Kd7 {[%clk 0:00:39]} 37. Ng4 {[%clk 0:00:04]}  h5 {[%clk 0:00:20]} 38. Nf6+ {[%clk 0:00:04]}  Ke7 {[%clk 0:00:21]} 39. Ne4 {[%clk 0:00:05]}  dxe5 {[%clk 0:00:18]} 40. fxe5 {[%clk 0:00:06]}  exd5 {[%clk 0:00:18]} 41. cxd5 {[%clk 0:00:05]}  Bf1 {[%clk 0:00:18]} 42. h4 {[%clk 0:00:04]}  Bg2 {[%clk 0:00:18]} 43. Nxc5 {[%clk 0:00:04]}  Bxd5 {[%clk 0:00:18]} 44. Kd4 {[%clk 0:00:05]}  Ba2 {[%clk 0:00:18]} 45. Nd3 {[%clk 0:00:04]}  Ke6 {[%clk 0:00:17]} 46. Nc5+ {[%clk 0:00:04]}  Kf5 {[%clk 0:00:17]} 47. Nd3 {[%clk 0:00:02]}  Kg4 {[%clk 0:00:16]} 48. Nb4 {[%clk 0:00:01]}  Be6 {[%clk 0:00:15]} 49. Nc6 {[%clk 0:00:01]}  a6 {[%clk 0:00:15]} 50. Nb4 {[%clk 0:00:01]}  Bc8 {[%clk 0:00:15]} 0-1


[Site "https://www.chess.com"]

[Event "Titled Tuesday Blitz July 25 Early 2023"]
[White "Prestia, Paris"]
[Black "Yolosz"]
[WhiteFideId "30925959"]
[WhiteElo "2701"]
[BlackElo "2361"]
[Result "1/2-1/2"]
[Round "1"]
[TimeControl "180+2"]
[Date "2023.07.25"]
[WhiteClock "0:00:28"]
[BlackClock "0:00:09"]
[Board "134"]

1. Nf3 {[%clk 0:03:00]}  d5 {[%clk 0:02:48]} 2. g3 {[%clk 0:02:59]}  Bf5 {[%clk 0:02:46]} 3. Bg2 {[%clk 0:02:59]}  c6 {[%clk 0:02:46]} 4. O-O {[%clk 0:03:00]}  e6 {[%clk 0:02:46]} 5. c4 {[%clk 0:03:00]}  Nd7 {[%clk 0:02:45]} 6. b3 {[%clk 0:02:53]}  Ngf6 {[%clk 0:02:43]} 7. Bb2 {[%clk 0:02:53]}  Be7 {[%clk 0:02:43]} 8. d3 {[%clk 0:02:50]}  h6 {[%clk 0:02:42]} 9. Nbd2 {[%clk 0:02:51]}  O-O {[%clk 0:02:36]} 10. Qc2 {[%clk 0:02:51]}  Bh7 {[%clk 0:02:24]} 11. a3 {[%clk 0:02:49]}  Qc7 {[%clk 0:02:14]} 12. b4 {[%clk 0:02:48]}  a5 {[%clk 0:02:12]} 13. c5 {[%clk 0:02:47]}  e5 {[%clk 0:02:02]} 14. e4 {[%clk 0:02:43]}  axb4 {[%clk 0:01:49]} 15. axb4 {[%clk 0:02:43]}  b6 {[%clk 0:01:45]} 16. cxb6 {[%clk 0:02:39]}  Qxb6 {[%clk 0:01:42]} 17. Nxe5 {[%clk 0:02:27]}  Nxe5 {[%clk 0:01:33]} 18. Bxe5 {[%clk 0:02:28]}  Qxb4 {[%clk 0:01:30]} 19. Rab1 {[%clk 0:02:20]}  Qa4 {[%clk 0:01:19]} 20. Rfc1 {[%clk 0:02:15]}  Nd7 {[%clk 0:00:48]} 21. Bf4 {[%clk 0:01:53]}  Nc5 {[%clk 0:00:36]} 22. Qxa4 {[%clk 0:00:29]}  Rxa4 {[%clk 0:00:37]} 23. Rc3 {[%clk 0:00:20]}  d4 {[%clk 0:00:31]} 24. Rc2 {[%clk 0:00:16]}  Nxd3 {[%clk 0:00:30]} 25. Rxc6 {[%clk 0:00:17]}  Nxf4 {[%clk 0:00:27]} 26. gxf4 {[%clk 0:00:17]}  Ra2 {[%clk 0:00:22]} 27. Nc4 {[%clk 0:00:17]}  Bh4 {[%clk 0:00:22]} 28. Rb2 {[%clk 0:00:16]}  Ra1+ {[%clk 0:00:21]} 29. Bf1 {[%clk 0:00:15]}  Bxe4 {[%clk 0:00:21]} 30. Rd6 {[%clk 0:00:11]}  Bd3 {[%clk 0:00:21]} 31. Nd2 {[%clk 0:00:12]}  Bxf1 {[%clk 0:00:18]} 32. Nxf1 {[%clk 0:00:13]}  Bf6 {[%clk 0:00:18]} 33. Kg2 {[%clk 0:00:13]}  Re8 {[%clk 0:00:18]} 34. Ng3 {[%clk 0:00:12]}  Ree1 {[%clk 0:00:15]} 35. Rb7 {[%clk 0:00:12]}  Rab1 {[%clk 0:00:11]} 36. Rc7 {[%clk 0:00:11]}  Rbc1 {[%clk 0:00:10]} 37. Ra7 {[%clk 0:00:12]}  Ra1 {[%clk 0:00:10]} 38. Rad7 {[%clk 0:00:11]}  Red1 {[%clk 0:00:07]} 39. Nh5 {[%clk 0:00:12]}  d3 {[%clk 0:00:06]} 40. Nxf6+ {[%clk 0:00:11]}  gxf6 {[%clk 0:00:07]} 41. Rxf6 {[%clk 0:00:12]}  d2 {[%clk 0:00:06]} 42. Kf3 {[%clk 0:00:05]}  Ra3+ {[%clk 0:00:05]} 43. Ke2 {[%clk 0:00:04]}  Re1+ {[%clk 0:00:04]} 44. Kxd2 {[%clk 0:00:05]}  Re6 {[%clk 0:00:02]} 45. Rfxf7 {[%clk 0:00:05]}  Rg6 {[%clk 0:00:02]} 46. f5 {[%clk 0:00:04]}  Rg2 {[%clk 0:00:02]} 47. f6 {[%clk 0:00:04]}  Rxf2+ {[%clk 0:00:02]} 48. Ke1 {[%clk 0:00:05]}  Rg2 {[%clk 0:00:02]} 49. Rg7+ {[%clk 0:00:05]}  Rxg7 {[%clk 0:00:02]} 50. Rxg7+ {[%clk 0:00:06]}  Kf8 {[%clk 0:00:02]} 51. Kf2 {[%clk 0:00:07]}  Rh3 {[%clk 0:00:01]} 52. Kg2 {[%clk 0:00:07]}  Rd3 {[%clk 0:00:02]} 53. Rg6 {[%clk 0:00:07]}  h5 {[%clk 0:00:01]} 54. Rh6 {[%clk 0:00:07]}  Kf7 {[%clk 0:00:02]} 55. h3 {[%clk 0:00:06]}  Re3 {[%clk 0:00:02]} 56. Kf2 {[%clk 0:00:06]}  Rc3 {[%clk 0:00:02]} 57. Kg2 {[%clk 0:00:07]}  Rd3 {[%clk 0:00:02]} 58. Rxh5 {[%clk 0:00:07]}  Kxf6 {[%clk 0:00:02]} 59. Ra5 {[%clk 0:00:08]}  Rc3 {[%clk 0:00:02]} 60. Ra4 {[%clk 0:00:09]}  Kg7 {[%clk 0:00:02]} 61. Rf4 {[%clk 0:00:09]}  Kh7 {[%clk 0:00:03]} 62. Rh4+ {[%clk 0:00:10]}  Kg7 {[%clk 0:00:02]} 63. Rg4+ {[%clk 0:00:11]}  Kh7 {[%clk 0:00:03]} 64. h4 {[%clk 0:00:11]}  Rb3 {[%clk 0:00:03]} 65. Kf2 {[%clk 0:00:12]}  Ra3 {[%clk 0:00:03]} 66. Rf4 {[%clk 0:00:13]}  Kh6 {[%clk 0:00:03]} 67. Re4 {[%clk 0:00:13]}  Kh5 {[%clk 0:00:04]} 68. Kg2 {[%clk 0:00:14]}  Rb3 {[%clk 0:00:04]} 69. Kh2 {[%clk 0:00:15]}  Ra3 {[%clk 0:00:04]} 70. Rb4 {[%clk 0:00:12]}  Rc3 {[%clk 0:00:04]} 71. Kg2 {[%clk 0:00:12]}  Rd3 {[%clk 0:00:04]} 72. Kf2 {[%clk 0:00:13]}  Rc3 {[%clk 0:00:05]} 73. Ke2 {[%clk 0:00:14]}  Rh3 {[%clk 0:00:05]} 74. Rb5+ {[%clk 0:00:14]}  Kxh4 {[%clk 0:00:05]} 75. Rb8 {[%clk 0:00:15]}  Kg3 {[%clk 0:00:05]} 76. Rg8+ {[%clk 0:00:16]}  Kf4 {[%clk 0:00:06]} 77. Rf8+ {[%clk 0:00:16]}  Ke5 {[%clk 0:00:06]} 78. Re8+ {[%clk 0:00:17]}  Kd6 {[%clk 0:00:06]} 79. Kf2 {[%clk 0:00:18]}  Kc6 {[%clk 0:00:06]} 80. Re4 {[%clk 0:00:18]}  Rd3 {[%clk 0:00:06]} 81. Rf4 {[%clk 0:00:19]}  Rd5 {[%clk 0:00:06]} 82. Ke3 {[%clk 0:00:19]}  Rc5 {[%clk 0:00:06]} 83. Re4 {[%clk 0:00:19]}  Rd5 {[%clk 0:00:07]} 84. Rh4 {[%clk 0:00:19]}  Kd6 {[%clk 0:00:06]} 85. Rh6+ {[%clk 0:00:19]}  Kc5 {[%clk 0:00:07]} 86. Ke4 {[%clk 0:00:20]}  Rd4+ {[%clk 0:00:07]} 87. Ke5 {[%clk 0:00:21]}  Rd5+ {[%clk 0:00:08]} 88. Ke4 {[%clk 0:00:21]}  Rd4+ {[%clk 0:00:08]} 89. Ke3 {[%clk 0:00:22]}  Rd5 {[%clk 0:00:09]} 90. Rh8 {[%clk 0:00:22]}  Kb5 {[%clk 0:00:08]} 91. Rb8+ {[%clk 0:00:23]}  Kc5 {[%clk 0:00:08]} 92. Ke4 {[%clk 0:00:24]}  Rd4+ {[%clk 0:00:08]} 93. Ke5 {[%clk 0:00:24]}  Rd5+ {[%clk 0:00:09]} 94. Ke6 {[%clk 0:00:25]}  Rd6+ {[%clk 0:00:09]} 95. Ke7 {[%clk 0:00:25]}  Rd5 {[%clk 0:00:10]} 96. Rc8+ {[%clk 0:00:25]}  Kd4 {[%clk 0:00:10]} 97. Ke6 {[%clk 0:00:26]}  Re5+ {[%clk 0:00:10]} 98. Kd6 {[%clk 0:00:27]}  Rd5+ {[%clk 0:00:11]} 99. Ke6 {[%clk 0:00:28]}  Re5+ {[%clk 0:00:11]} 100. Kf6 {[%clk 0:00:28]}  Rd5 {[%clk 0:00:11]} 101. Rc1 {[%clk 0:00:29]}  Rc5 {[%clk 0:00:10]} 102. Rd1+ {[%clk 0:00:29]}  Kc4 {[%clk 0:00:09]} 103. Ke6 {[%clk 0:00:30]}  Kb5 {[%clk 0:00:09]} 104. Rb1+ {[%clk 0:00:28]} 1/2-1/2


[Site "https://www.chess.com"]

[Event "Titled Tuesday Blitz July 25 Early 2023"]
[White "Llanos, Guillermo"]
[Black "Djokic, Mihailo"]
[WhiteFideId "100358"]
[BlackFideId "976440"]
[WhiteElo "2361"]
[BlackElo "2700"]
[Result "0-1"]
[Round "1"]
[TimeControl "180+2"]
[Date "2023.07.25"]
[WhiteClock "0:00:24"]
[BlackClock "0:01:19"]
[Board "135"]

1. Nf3 {[%clk 0:02:59]}  Nf6 {[%clk 0:02:59]} 2. g3 {[%clk 0:02:57]}  g6 {[%clk 0:03:00]} 3. Bg2 {[%clk 0:02:58]}  Bg7 {[%clk 0:02:59]} 4. O-O {[%clk 0:02:58]}  O-O {[%clk 0:03:00]} 5. b3 {[%clk 0:02:59]}  d6 {[%clk 0:02:59]} 6. d4 {[%clk 0:02:58]}  e5 {[%clk 0:02:57]} 7. Bb2 {[%clk 0:02:59]}  e4 {[%clk 0:02:58]} 8. Ne1 {[%clk 0:02:56]}  d5 {[%clk 0:02:52]} 9. c4 {[%clk 0:02:55]}  c6 {[%clk 0:02:52]} 10. Nc3 {[%clk 0:02:53]}  Re8 {[%clk 0:02:50]} 11. f3 {[%clk 0:02:52]}  exf3 {[%clk 0:02:35]} 12. exf3 {[%clk 0:02:41]}  h5 {[%clk 0:02:32]} 13. cxd5 {[%clk 0:02:36]}  Nxd5 {[%clk 0:02:28]} 14. Nxd5 {[%clk 0:02:33]}  cxd5 {[%clk 0:02:22]} 15. Qd2 {[%clk 0:02:28]}  Nc6 {[%clk 0:02:19]} 16. Rd1 {[%clk 0:02:09]}  Bf5 {[%clk 0:02:16]} 17. h3 {[%clk 0:02:08]}  Rc8 {[%clk 0:02:06]} 18. g4 {[%clk 0:02:08]}  hxg4 {[%clk 0:02:06]} 19. hxg4 {[%clk 0:02:08]}  Be6 {[%clk 0:02:06]} 20. a3 {[%clk 0:01:58]}  Qb6 {[%clk 0:02:04]} 21. b4 {[%clk 0:01:56]}  Ne5 {[%clk 0:02:04]} 22. Qf2 {[%clk 0:01:53]}  Nc4 {[%clk 0:02:05]} 23. Bc1 {[%clk 0:01:51]}  a5 {[%clk 0:01:58]} 24. Nc2 {[%clk 0:01:32]}  axb4 {[%clk 0:01:43]} 25. axb4 {[%clk 0:01:31]}  Ra8 {[%clk 0:01:44]} 26. Bf4 {[%clk 0:01:08]}  Ra2 {[%clk 0:01:43]} 27. Rd3 {[%clk 0:00:29]}  Na3 {[%clk 0:01:31]} 28. Rc1 {[%clk 0:00:27]}  Nxc2 {[%clk 0:01:28]} 29. Rxc2 {[%clk 0:00:26]}  Bxd4 {[%clk 0:01:20]} 30. Rxa2 {[%clk 0:00:25]}  Bxf2+ {[%clk 0:01:20]} 31. Rxf2 {[%clk 0:00:25]}  Qxb4 {[%clk 0:01:20]} 32. Bf1 {[%clk 0:00:24]}  Qxf4 {[%clk 0:01:19]} 0-1


[Site "https://www.chess.com"]

[Event "Titled Tuesday Blitz July 25 Early 2023"]
[White "Pershina, Elena"]
[Black "Mohammad Fahad, Rahman"]
[WhiteFideId "24147516"]
[BlackFideId "10207791"]
[WhiteElo "2351"]
[BlackElo "2693"]
[Result "1-0"]
[Round "1"]
[TimeControl "180+2"]
[Date "2023.07.25"]
[WhiteClock "0:00:17"]
[BlackClock "0:00:02"]
[Board "137"]

1. c4 {[%clk 0:02:59]}  c6 {[%clk 0:03:00]} 2. g3 {[%clk 0:02:57]}  g6 {[%clk 0:03:00]} 3. Bg2 {[%clk 0:02:56]}  Bg7 {[%clk 0:03:00]} 4. Nf3 {[%clk 0:02:52]}  d5 {[%clk 0:03:00]} 5. d4 {[%clk 0:02:50]}  dxc4 {[%clk 0:02:58]} 6. O-O {[%clk 0:02:49]}  Nf6 {[%clk 0:02:58]} 7. Ne5 {[%clk 0:02:47]}  Ng4 {[%clk 0:02:58]} 8. Bf4 {[%clk 0:02:24]}  O-O {[%clk 0:02:52]} 9. Na3 {[%clk 0:02:20]}  Nxe5 {[%clk 0:02:49]} 10. Bxe5 {[%clk 0:02:19]}  Bxe5 {[%clk 0:02:44]} 11. dxe5 {[%clk 0:02:20]}  Be6 {[%clk 0:02:45]} 12. Qc2 {[%clk 0:02:15]}  Qd4 {[%clk 0:02:43]} 13. Rfd1 {[%clk 0:02:06]}  Qxe5 {[%clk 0:02:43]} 14. Nxc4 {[%clk 0:02:06]}  Qc5 {[%clk 0:02:39]} 15. Rac1 {[%clk 0:02:03]}  Nd7 {[%clk 0:02:38]} 16. b3 {[%clk 0:01:56]}  Rfd8 {[%clk 0:02:26]} 17. Qb2 {[%clk 0:01:55]}  Nf6 {[%clk 0:02:17]} 18. Ne5 {[%clk 0:01:40]}  Qb6 {[%clk 0:01:59]} 19. h3 {[%clk 0:01:36]}  Rxd1+ {[%clk 0:01:54]} 20. Rxd1 {[%clk 0:01:37]}  Rd8 {[%clk 0:01:55]} 21. Qc1 {[%clk 0:01:33]}  Kg7 {[%clk 0:01:48]} 22. e3 {[%clk 0:01:30]}  Rxd1+ {[%clk 0:01:44]} 23. Qxd1 {[%clk 0:01:30]}  Qa5 {[%clk 0:01:45]} 24. Nd3 {[%clk 0:01:18]}  Qxa2 {[%clk 0:01:44]} 25. Nc5 {[%clk 0:01:18]}  Bd5 {[%clk 0:01:03]} 26. e4 {[%clk 0:01:18]}  Qa3 {[%clk 0:00:46]} 27. Nxb7 {[%clk 0:01:04]}  Bxb3 {[%clk 0:00:40]} 28. Qd4 {[%clk 0:00:58]}  Qc1+ {[%clk 0:00:21]} 29. Kh2 {[%clk 0:00:56]}  Be6 {[%clk 0:00:20]} 30. Nd8 {[%clk 0:00:52]}  Qc4 {[%clk 0:00:14]} 31. Qxa7 {[%clk 0:00:50]}  Qb4 {[%clk 0:00:08]} 32. Nxc6 {[%clk 0:00:47]}  Qc3 {[%clk 0:00:03]} 33. Nxe7 {[%clk 0:00:46]}  Nd7 {[%clk 0:00:03]} 34. Nd5 {[%clk 0:00:43]}  Bxd5 {[%clk 0:00:04]} 35. exd5 {[%clk 0:00:44]}  Ne5 {[%clk 0:00:03]} 36. d6 {[%clk 0:00:42]}  Qd2 {[%clk 0:00:03]} 37. Qc5 {[%clk 0:00:32]}  Kf6 {[%clk 0:00:03]} 38. Qd5 {[%clk 0:00:24]}  Qxf2 {[%clk 0:00:02]} 39. d7 {[%clk 0:00:23]}  Nxd7 {[%clk 0:00:02]} 40. Qxd7 {[%clk 0:00:23]}  Kg7 {[%clk 0:00:03]} 41. Qe7 {[%clk 0:00:21]}  h5 {[%clk 0:00:03]} 42. Qe5+ {[%clk 0:00:21]}  Qf6 {[%clk 0:00:03]} 43. Qxf6+ {[%clk 0:00:21]}  Kxf6 {[%clk 0:00:04]} 44. Kg1 {[%clk 0:00:21]}  h4 {[%clk 0:00:03]} 45. g4 {[%clk 0:00:21]}  Kg5 {[%clk 0:00:04]} 46. Kf2 {[%clk 0:00:20]}  f5 {[%clk 0:00:04]} 47. Bf3 {[%clk 0:00:17]}  Kf4 {[%clk 0:00:03]} 48. Kg2 {[%clk 0:00:17]}  Kg5 {[%clk 0:00:02]} 49. Bd1 {[%clk 0:00:16]}  Kf4 {[%clk 0:00:02]} 50. Be2 {[%clk 0:00:16]}  Kg5 {[%clk 0:00:02]} 51. Kf3 {[%clk 0:00:16]}  Kf6 {[%clk 0:00:01]} 52. Bf1 {[%clk 0:00:16]}  Kg5 {[%clk 0:00:02]} 53. Bg2 {[%clk 0:00:15]}  fxg4+ {[%clk 0:00:02]} 54. hxg4 {[%clk 0:00:16]}  h3 {[%clk 0:00:02]} 55. Bxh3 {[%clk 0:00:16]}  Kh6 {[%clk 0:00:03]} 56. Kf4 {[%clk 0:00:16]}  Kg7 {[%clk 0:00:03]} 57. Ke5 {[%clk 0:00:15]}  Kh6 {[%clk 0:00:03]} 58. Kf6 {[%clk 0:00:16]}  Kh7 {[%clk 0:00:03]} 59. g5 {[%clk 0:00:16]}  Kh8 {[%clk 0:00:01]} 60. Kxg6 {[%clk 0:00:16]}  Kg8 {[%clk 0:00:02]} 61. Kh6 {[%clk 0:00:16]}  Kh8 {[%clk 0:00:02]} 62. g6 {[%clk 0:00:17]}  Kg8 {[%clk 0:00:02]} 63. g7 {[%clk 0:00:17]}  Kf7 {[%clk 0:00:02]} 64. Kh7 {[%clk 0:00:17]} 1-0


[Site "https://www.chess.com"]

[Event "Titled Tuesday Blitz July 25 Early 2023"]
[White "Oleksiyenko, Mykhaylo"]
[Black "Slavin, Alexey"]
[WhiteFideId "4152417"]
[BlackFideId "24104388"]
[WhiteElo "2693"]
[BlackElo "2349"]
[Result "1-0"]
[Round "1"]
[TimeControl "180+2"]
[Date "2023.07.25"]
[WhiteClock "0:00:10"]
[BlackClock "0:00:02"]
[Board "138"]

1. e4 {[%clk 0:03:00]}  Nc6 {[%clk 0:02:56]} 2. Nf3 {[%clk 0:02:57]}  d6 {[%clk 0:02:55]} 3. d4 {[%clk 0:02:57]}  Nf6 {[%clk 0:02:55]} 4. Nc3 {[%clk 0:02:57]}  Bg4 {[%clk 0:02:56]} 5. Be2 {[%clk 0:02:54]}  e5 {[%clk 0:02:54]} 6. d5 {[%clk 0:02:46]}  Ne7 {[%clk 0:02:54]} 7. h3 {[%clk 0:02:44]}  Bd7 {[%clk 0:02:53]} 8. Bg5 {[%clk 0:02:34]}  Ng6 {[%clk 0:02:53]} 9. h4 {[%clk 0:02:34]}  h6 {[%clk 0:02:49]} 10. Be3 {[%clk 0:02:25]}  Be7 {[%clk 0:02:49]} 11. h5 {[%clk 0:02:18]}  Nf8 {[%clk 0:02:48]} 12. Qd2 {[%clk 0:02:09]}  Ng4 {[%clk 0:02:43]} 13. O-O-O {[%clk 0:01:56]}  Nh7 {[%clk 0:02:41]} 14. Kb1 {[%clk 0:01:52]}  O-O {[%clk 0:02:41]} 15. Bb5 {[%clk 0:01:41]}  Bc8 {[%clk 0:02:36]} 16. Nh2 {[%clk 0:01:26]}  Nxe3 {[%clk 0:02:15]} 17. Qxe3 {[%clk 0:01:27]}  a6 {[%clk 0:02:14]} 18. Be2 {[%clk 0:01:21]}  Bg5 {[%clk 0:02:00]} 19. Qd3 {[%clk 0:01:10]}  f5 {[%clk 0:01:58]} 20. Bf3 {[%clk 0:01:04]}  f4 {[%clk 0:01:47]} 21. Bg4 {[%clk 0:01:02]}  Nf6 {[%clk 0:01:43]} 22. Bxc8 {[%clk 0:01:02]}  Qxc8 {[%clk 0:01:43]} 23. Qe2 {[%clk 0:01:01]}  b5 {[%clk 0:01:27]} 24. Nf3 {[%clk 0:01:00]}  Nh7 {[%clk 0:01:26]} 25. Nd2 {[%clk 0:00:55]}  Qd7 {[%clk 0:01:24]} 26. Nb3 {[%clk 0:00:54]}  Bd8 {[%clk 0:01:20]} 27. a3 {[%clk 0:00:48]}  Nf6 {[%clk 0:01:19]} 28. Na5 {[%clk 0:00:43]}  Rb8 {[%clk 0:01:13]} 29. Nc6 {[%clk 0:00:43]}  Rb6 {[%clk 0:01:13]} 30. Rd3 {[%clk 0:00:35]}  Be7 {[%clk 0:01:11]} 31. g3 {[%clk 0:00:29]}  Nh7 {[%clk 0:01:05]} 32. gxf4 {[%clk 0:00:22]}  Rxf4 {[%clk 0:01:02]} 33. Rg3 {[%clk 0:00:22]}  Bg5 {[%clk 0:00:59]} 34. Rhg1 {[%clk 0:00:21]}  Rf8 {[%clk 0:00:41]} 35. Nd1 {[%clk 0:00:20]}  Rxc6 {[%clk 0:00:27]} 36. dxc6 {[%clk 0:00:19]}  Qxc6 {[%clk 0:00:28]} 37. Qd3 {[%clk 0:00:17]}  Kh8 {[%clk 0:00:28]} 38. Ne3 {[%clk 0:00:18]}  Bxe3 {[%clk 0:00:21]} 39. Qxe3 {[%clk 0:00:19]}  Ng5 {[%clk 0:00:16]} 40. Rxg5 {[%clk 0:00:19]}  hxg5 {[%clk 0:00:16]} 41. Qxg5 {[%clk 0:00:20]}  Qd7 {[%clk 0:00:09]} 42. h6 {[%clk 0:00:21]}  Rf7 {[%clk 0:00:06]} 43. Rh1 {[%clk 0:00:18]}  Kg8 {[%clk 0:00:05]} 44. h7+ {[%clk 0:00:16]}  Kh8 {[%clk 0:00:05]} 45. Qg3 {[%clk 0:00:14]}  Qe7 {[%clk 0:00:03]} 46. Ka1 {[%clk 0:00:12]}  Qf8 {[%clk 0:00:03]} 47. Rh2 {[%clk 0:00:12]}  Rf3 {[%clk 0:00:02]} 48. Qg6 {[%clk 0:00:11]}  Rf6 {[%clk 0:00:02]} 49. Qg4 {[%clk 0:00:11]}  Rf4 {[%clk 0:00:02]} 50. Qd7 {[%clk 0:00:10]}  Rf7 {[%clk 0:00:02]} 51. Qc6 {[%clk 0:00:10]} 1-0


[Site "https://www.chess.com"]